[Event "DMP Ekstraliga 2020"]
[Site "Krakow"]
[Date "2020.08.30"]
[Round "5.4"]
[White "Kanarek, Marcel"]
[Black "Zwardon, Vojtech"]
[Result "1/2-1/2"]
[ECO "B36"]
[WhiteElo "2488"]
[BlackElo "2481"]
[Annotator "ChessBase"]
[PlyCount "120"]
[EventDate "2020.08.26"]
[EventType "team-tourn"]
[EventCountry "POL"]
[SourceTitle "playchess.com"]
[Source "ChessBase"]
[SourceQuality "1"]
[WhiteTeam "Stilon Gorzow"]
[BlackTeam "Dwie Wieze Krakow"]
[TimeControl "30/5400+30:1800+30"]

1. e4 {[%emt 0:00:00]} c5 {[%emt 0:00:00]} 2. Nf3 {[%emt 0:00:00]} Nc6 {[%emt 0:00:00]} 3. d4 {[%emt 0:00:00]} cxd4 {[%emt 0:00:00]} 4. Nxd4 {[%emt 0:00:02]} g6 {[%emt 0:00:00]} 5. c4 {[%emt 0:00:08]} Nf6 {[%emt 0:00:00]} 6. Nc3 {[%emt 0:00:10]} d6 {[%emt 0:00:00]} 7. Be2 {[%emt 0:00:28]} Nxd4 {[%emt 0:00:00]} 8. Qxd4 {[%emt 0:00:02]} Bg7 {[%emt 0:00:00]} 9. Be3 {[%emt 0:00:21]} O-O {[%emt 0:00:00]} 10. Qd2 {[%emt 0:00:20]} Be6 {[%emt 0:00:00]} 11. O-O {[%emt 0:01:10]} Qa5 {[%emt 0:01:14]} 12. Rfc1 {[%emt 0:02:15]} Rfc8 {[%emt 0:02:36]} 13. b3 {[%emt 0:02:48]} a6 {[%emt 0:06:27]} 14. Rab1 {[%emt 0:00:07]} Qd8 {[%emt 0:30:23]} 15. f3 {[%emt 0:05:41]} Nd7 {[%emt 0:00:57]} 16. Nd5 {[%emt 0:07:20]} a5 {[%emt 0:02:35]} 17. a3 {[%emt 0:04:11]} Nc5 {[%emt 0:02:48]} 18. b4 {[%emt 0:02:53]} axb4 {[%emt 0:00:06]} 19. axb4 {[%emt 0:00:07]} Nd7 {[%emt 0:01:55]} 20. c5 {[%emt 0:28:42]} Nf6 {[%emt 0:00:56]} 21. Bc4 {[%emt 0:17:41]} Nxd5 {[%emt 0:03:14]} 22. exd5 {[%emt 0:01:01]} Bf5 {[%emt 0:00:04]} 23. Rb3 {[%emt 0:05:48]} Bd7 {[%emt 0:00:47]} 24. f4 {[%emt 0:04:17]} Qf8 {[%emt 0:02:38]} 25. Be2 {[%emt 0:02:42]} e6 {[%emt 0:07:00]} 26. Bf3 {[%emt 0:00:47]} dxc5 {[%emt 0:00:28]} 27. bxc5 {[%emt 0:04:23]} exd5 {[%emt 0:01:04]} 28. Rxb7 {[%emt 0:00:46]} Bc6 {[%emt 0:05:42]} 29. Rb6 {[%emt 0:00:02]} Qe8 {[%emt 0:00:30]} 30. Bd4 {[%emt 0:03:52]} Ra4 {[%emt 0:05:22]} 31. Bxg7 {[%emt 0:34:17]} Kxg7 {[%emt 0:30:01]} 32. h3 {[%emt 0:00:55]} Qe7 {[%emt 0:05:06]} 33. f5 {[%emt 0:00:17]} Qe5 {[%emt 0:01:16]} 34. fxg6 {[%emt 0:02:29]} hxg6 {[%emt 0:01:55]} 35. Qb2 {[%emt 0:00:26]} Qxb2 {[%emt 0:00:49]} 36. Rxb2 {[%emt 0:00:02]} Rc4 {[%emt 0:00:34]} 37. Rbc2 {[%emt 0:00:43]} Rxc2 {[%emt 0:00:57]} 38. Rxc2 {[%emt 0:00:02]} Kf6 {[%emt 0:00:26]} 39. Kf2 {[%emt 0:01:24]} Rb8 {[%emt 0:00:35]} 40. Ra2 {[%emt 0:00:00]} Ke5 {[%emt 0:00:00]} 41. h4 {[%emt 0:00:00]} Kd4 {[%emt 0:00:00]} 42. Ra7 {[%emt 0:00:00]} Rf8 {[%emt 0:00:00]} 43. Ra5 {[%emt 0:00:00]} f6 {[%emt 0:00:00]} 44. Kg3 {[%emt 0:00:00]} Kc4 {[%emt 0:00:00]} 45. Kf4 {[%emt 0:00:00]} Kb4 {[%emt 0:00:00]} 46. Ra7 {[%emt 0:00:00]} Kxc5 {[%emt 0:00:00]} 47. Rg7 {[%emt 0:00:00]} Be8 {[%emt 0:00:00]} 48. Rc7+ {[%emt 0:00:00]} Kd4 {[%emt 0:00:00]} 49. Rc8 {[%emt 0:02:31]} Rg8 {[%emt 0:00:00]} 50. Rd8 {[%emt 0:01:15]} Bf7 {[%emt 0:00:00]} 51. Rxg8 {[%emt 0:01:15]} Bxg8 {[%emt 0:00:00]} 52. g4 {[%emt 0:00:19]} Be6 {[%emt 0:00:00]} 53. g5 {[%emt 0:01:04]} fxg5+ {[%emt 0:00:00]} 54. Kxg5 {[%emt 0:00:16]} Bf7 {[%emt 0:00:00]} 55. Kf6 {[%emt 0:00:47]} Be8 {[%emt 0:00:00]} 56. Ke6 {[%emt 0:00:40]} Bc6 {[%emt 0:00:00]} 57. Kf7 {[%emt 0:00:48]} Ke3 {[%emt 0:00:00]} 58. Bxd5 {[%emt 0:00:39]} Bxd5+ {[%emt 0:00:00]} 59. Kxg6 {[%emt 0:00:05]} Bf3 {[%emt 0:00:00]} 60. h5 {[%emt 0:00:08]} Bxh5+ 1/2-1/2

[Event "DMP Ekstraliga 2020"]
[Site "Krakow"]
[Date "2020.08.30"]
[Round "5.5"]
[White "Mikrut, Dariusz"]
[Black "Janik, Igor"]
[Result "0-1"]
[ECO "A41"]
[WhiteElo "2390"]
[BlackElo "2471"]
[Annotator "ChessBase"]
[PlyCount "86"]
[EventDate "2020.08.26"]
[EventType "team-tourn"]
[EventCountry "POL"]
[SourceTitle "playchess.com"]
[Source "ChessBase"]
[SourceQuality "1"]
[WhiteTeam "Dwie Wieze Krakow"]
[BlackTeam "Stilon Gorzow"]
[TimeControl "30/5400+30:1800+30"]

1. d4 {[%emt 0:00:00]} d6 {[%emt 0:00:00]} 2. c4 {[%emt 0:00:00]} e5 {[%emt 0:00:00]} 3. d5 {[%emt 0:00:03]} f5 {[%emt 0:00:00]} 4. e4 {[%emt 0:00:28]} fxe4 {[%emt 0:00:00]} 5. Nc3 {[%emt 0:00:05]} Nf6 {[%emt 0:00:02]} 6. Nge2 {[%emt 0:00:37]} Bf5 {[%emt 0:00:08]} 7. Ng3 {[%emt 0:00:06]} Bg6 {[%emt 0:00:05]} 8. Bg5 {[%emt 0:00:52]} Be7 {[%emt 0:00:07]} 9. h4 {[%emt 0:00:13]} h6 {[%emt 0:00:54]} 10. Bxf6 {[%emt 0:06:09]} Bxf6 {[%emt 0:00:02]} 11. Qg4 {[%emt 0:07:01]} Bh7 {[%emt 0:01:12]} 12. Qh5+ {[%emt 0:09:32]} Kf8 {[%emt 0:09:12]} 13. Ngxe4 {[%emt 0:01:43]} Nd7 {[%emt 0:04:07]} 14. Bd3 {[%emt 0:01:56]} Qe7 {[%emt 0:00:47]} 15. O-O-O {[%emt 0:02:43]} a6 {[%emt 0:05:37]} 16. Kb1 {[%emt 0:10:35]} Rb8 {[%emt 0:04:03]} 17. a4 {[%emt 0:16:01]} Kg8 {[%emt 0:01:32]} 18. Qg4 {[%emt 0:01:23]} Rf8 {[%emt 0:03:50]} 19. Rh3 {[%emt 0:02:33]} Rf7 {[%emt 0:03:41]} 20. h5 {[%emt 0:04:07]} Bg5 {[%emt 0:03:55]} 21. Qe2 {[%emt 0:03:27]} Bf5 {[%emt 0:06:20]} 22. g4 {[%emt 0:01:36]} Bh7 {[%emt 0:01:25]} 23. f3 {[%emt 0:02:14]} Bf4 {[%emt 0:01:38]} 24. Qc2 {[%emt 0:00:49]} b6 {[%emt 0:02:23]} 25. a5 {[%emt 0:00:12]} bxa5 {[%emt 0:03:21]} 26. c5 {[%emt 0:02:15]} Be3 {[%emt 0:06:51]} 27. cxd6 {[%emt 0:00:15]} cxd6 {[%emt 0:00:01]} 28. Na4 {[%emt 0:00:14]} Nf6 {[%emt 0:04:36]} 29. Ng3 {[%emt 0:13:30]} Bd4 {[%emt 0:02:24]} 30. Bg6 {[%emt 0:00:31]} Nxd5 {[%emt 0:05:23]} 31. Nf5 {[%emt 0:31:13]} Qd7 {[%emt 0:32:41]} 32. Qc4 {[%emt 0:03:20]} Nf4 {[%emt 0:01:57]} 33. Nb6 {[%emt 0:08:27]} Qe6 {[%emt 0:12:03]} 34. Rxd4 {[%emt 0:01:24]} exd4 {[%emt 0:02:17]} 35. Qxe6 {[%emt 0:00:33]} Nxe6 {[%emt 0:00:04]} 36. Rh1 {[%emt 0:00:10]} Nf4 {[%emt 0:01:09]} 37. Bxf7+ {[%emt 0:01:40]} Kxf7 {[%emt 0:00:01]} 38. Nc4 {[%emt 0:00:15]} Bxf5+ {[%emt 0:00:25]} 39. gxf5 {[%emt 0:00:03]} d5 {[%emt 0:00:33]} 40. Ne5+ {[%emt 0:00:00]} Kf6 {[%emt 0:00:00]} 41. Ng6 {[%emt 0:00:00]} Nxg6 {[%emt 0:00:00]} 42. fxg6 {[%emt 0:00:00]} Re8 {[%emt 0:00:00]} 43. Rc1 {[%emt 0:00:00]} d3 {[%emt 0:00:00]} 0-1

[Event "DMP Ekstraliga 2020"]
[Site "Krakow"]
[Date "2020.08.30"]
[Round "5.6"]
[White "Antolak, Julia"]
[Black "Leks, Maria"]
[Result "1/2-1/2"]
[ECO "C96"]
[WhiteElo "2323"]
[BlackElo "2080"]
[Annotator "ChessBase"]
[PlyCount "107"]
[EventDate "2020.08.26"]
[EventType "team-tourn"]
[EventCountry "POL"]
[SourceTitle "playchess.com"]
[Source "ChessBase"]
[SourceQuality "1"]
[WhiteTeam "Stilon Gorzow"]
[BlackTeam "Dwie Wieze Krakow"]
[TimeControl "30/5400+30:1800+30"]

1. e4 {[%emt 0:00:00]} e5 {[%emt 0:00:00]} 2. Nf3 {[%emt 0:00:00]} Nc6 {[%emt 0:00:00]} 3. Bb5 {[%emt 0:00:00]} a6 {[%emt 0:00:00]} 4. Ba4 {[%emt 0:00:00]} Nf6 {[%emt 0:00:01]} 5. O-O {[%emt 0:00:00]} Be7 {[%emt 0:00:04]} 6. Re1 {[%emt 0:00:04]} b5 {[%emt 0:00:12]} 7. Bb3 {[%emt 0:00:06]} d6 {[%emt 0:00:22]} 8. c3 {[%emt 0:00:04]} O-O {[%emt 0:00:06]} 9. h3 {[%emt 0:00:03]} Na5 {[%emt 0:00:13]} 10. Bc2 {[%emt 0:00:06]} c5 {[%emt 0:00:04]} 11. d4 {[%emt 0:00:05]} Nd7 {[%emt 0:00:06]} 12. d5 {[%emt 0:00:32]} Nb6 {[%emt 0:00:04]} 13. Nbd2 {[%emt 0:00:38]} f5 {[%emt 0:00:20]} 14. exf5 {[%emt 0:00:28]} Bxf5 {[%emt 0:00:04]} 15. Bxf5 {[%emt 0:00:27]} Rxf5 {[%emt 0:00:05]} 16. Ne4 {[%emt 0:00:12]} Qd7 {[%emt 0:00:21]} 17. Nfg5 {[%emt 0:11:43]} Nb7 {[%emt 0:09:04]} 18. b3 {[%emt 0:23:42]} Bxg5 {[%emt 0:27:19]} 19. Bxg5 {[%emt 0:05:53]} h6 {[%emt 0:02:24]} 20. Be3 Qf7 21. c4 {[%emt 0:01:57]} bxc4 {[%emt 0:04:33]} 22. bxc4 {[%emt 0:00:05]} Nxc4 {[%emt 0:02:58]} 23. Rb1 {[%emt 0:01:17]} Nba5 24. Bd2 Qxd5 {[%emt 0:05:35]} 25. Bxa5 {[%emt 0:14:45]} Qxd1 26. Rbxd1 {[%emt 0:01:07]} Nxa5 {[%emt 0:00:12]} 27. Nxd6 {[%emt 0:02:59]} Rf6 28. Rxe5 Rxd6 {[%emt 0:20:05]} 29. Rxd6 {[%emt 0:00:36]} Nc4 30. Red5 {[%emt 0:07:35]} Nxd6 {[%emt 0:00:20]} 31. Rxd6 Rb8 32. Rxa6 {[%emt 0:31:05]} Rb1+ {[%emt 0:31:45]} 33. Kh2 c4 {[%emt 0:00:19]} 34. Rc6 {[%emt 0:00:24]} Ra1 {[%emt 0:00:36]} 35. Rxc4 {[%emt 0:00:06]} Rxa2 {[%emt 0:01:18]} 36. Rf4 h5 37. Kg3 {[%emt 0:04:44]} Kh7 {[%emt 0:00:50]} 38. Re4 {[%emt 0:02:05]} Kh6 {[%emt 0:02:27]} 39. Re6+ {[%emt 0:00:00]} g6 {[%emt 0:00:36]} 40. Re3 {[%emt 0:00:00]} Rb2 {[%emt 0:00:00]} 41. f4 {[%emt 0:00:00]} Ra2 42. Rf3 h4+ {[%emt 0:00:00]} 43. Kh2 {[%emt 0:00:00]} Ra1 {[%emt 0:00:00]} 44. Rf2 {[%emt 0:00:00]} Rb1 {[%emt 0:00:00]} 45. g3 {[%emt 0:00:00]} hxg3+ {[%emt 0:00:00]} 46. Kxg3 {[%emt 0:00:00]} Rb5 {[%emt 0:00:00]} 47. Kg4 {[%emt 0:00:00]} Ra5 {[%emt 0:00:00]} 48. h4 {[%emt 0:00:00]} Rb5 {[%emt 0:00:00]} 49. Re2 {[%emt 0:00:00]} Ra5 {[%emt 0:00:00]} 50. Re5 {[%emt 0:00:00]} Ra1 {[%emt 0:00:00]} 51. Re3 {[%emt 0:00:00]} Rg1+ {[%emt 0:00:00]} 52. Rg3 {[%emt 0:00:00]} Rf1 {[%emt 0:00:00]} 53. Rg2 {[%emt 0:00:00]} Ra1 {[%emt 0:00:00]} 54. Rg3 {[%emt 0:00:00]} 1/2-1/2

[Event "DMP Ekstraliga 2020"]
[Site "Krakow"]
[Date "2020.08.30"]
[Round "5.7"]
[White "Kempinski, Robert"]
[Black "Huschenbeth, Niclas"]
[Result "1/2-1/2"]
[ECO "A19"]
[WhiteElo "2568"]
[BlackElo "2605"]
[Annotator "ChessBase"]
[PlyCount "80"]
[EventDate "2020.08.26"]
[EventType "team-tourn"]
[EventCountry "POL"]
[SourceTitle "playchess.com"]
[Source "ChessBase"]
[SourceQuality "1"]
[WhiteTeam "Miedz Legnica"]
[BlackTeam "Silesia Raciborz"]
[TimeControl "30/5400+30:1800+30"]

1. c4 {[%emt 0:00:00]} e6 {[%emt 0:00:03]} 2. Nc3 {[%emt 0:00:19]} Nf6 {[%emt 0:00:19]} 3. e4 {[%emt 0:02:35]} c5 {[%emt 0:00:08]} 4. Nf3 {[%emt 0:02:06]} Nc6 {[%emt 0:00:43]} 5. Be2 {[%emt 0:01:39]} Nd4 {[%emt 0:11:29]} 6. O-O {[%emt 0:04:16]} d6 {[%emt 0:01:01]} 7. d3 {[%emt 0:02:24]} Bd7 {[%emt 0:02:37]} 8. Be3 {[%emt 0:06:10]} Qb6 {[%emt 0:00:55]} 9. Rb1 {[%emt 0:02:15]} a5 {[%emt 0:01:15]} 10. a4 {[%emt 0:17:39]} Be7 {[%emt 0:07:05]} 11. Nb5 {[%emt 0:01:09]} Bxb5 {[%emt 0:02:48]} 12. axb5 {[%emt 0:00:36]} O-O {[%emt 0:02:07]} 13. Nxd4 {[%emt 0:13:02]} cxd4 {[%emt 0:00:05]} 14. Bg5 {[%emt 0:00:16]} Qc5 {[%emt 0:07:16]} 15. Bxf6 {[%emt 0:00:09]} Bxf6 {[%emt 0:00:10]} 16. Ra1 {[%emt 0:00:05]} d5 {[%emt 0:18:22]} 17. exd5 {[%emt 0:02:01]} exd5 {[%emt 0:00:32]} 18. Qb3 {[%emt 0:03:01]} dxc4 {[%emt 0:02:02]} 19. dxc4 {[%emt 0:00:39]} b6 {[%emt 0:03:22]} 20. Bf3 {[%emt 0:01:05]} Rad8 {[%emt 0:08:44]} 21. Bd5 {[%emt 0:09:35]} Rfe8 {[%emt 0:09:46]} 22. Qd3 {[%emt 0:03:01]} Qb4 {[%emt 0:00:20]} 23. Rab1 {[%emt 0:01:16]} h5 {[%emt 0:11:42]} 24. g3 {[%emt 0:01:37]} h4 {[%emt 0:00:26]} 25. Rfd1 {[%emt 0:02:55]} Re5 {[%emt 0:00:53]} 26. Kg2 {[%emt 0:07:17]} Qe7 {[%emt 0:00:51]} 27. Qf3 {[%emt 0:02:38]} Re2 {[%emt 0:01:33]} 28. Kf1 {[%emt 0:00:45]} Re5 {[%emt 0:04:12]} 29. Rxd4 {[%emt 0:01:44]} Re8 {[%emt 0:00:03]} 30. gxh4 {[%emt 0:01:58]} Re1+ {[%emt 0:02:13]} 31. Rxe1 {[%emt 0:30:21]} Qxe1+ {[%emt 0:30:02]} 32. Kg2 {[%emt 0:00:08]} Qe2 {[%emt 0:00:44]} 33. Rf4 {[%emt 0:05:09]} Qxb2 {[%emt 0:00:03]} 34. Qh5 {[%emt 0:00:38]} Re7 {[%emt 0:01:51]} 35. Re4 {[%emt 0:01:26]} Qb4 {[%emt 0:00:41]} 36. Bxf7+ {[%emt 0:03:16]} Rxf7 {[%emt 0:00:04]} 37. Re8+ {[%emt 0:00:07]} Rf8 {[%emt 0:00:02]} 38. Qd5+ {[%emt 0:00:08]} Kh7 {[%emt 0:01:25]} 39. Qh5+ {[%emt 0:00:10]} Kg8 {[%emt 0:00:03]} 40. Qd5+ {[%emt 0:00:00]} Kh7 {[%emt 0:00:00]} 1/2-1/2

[Event "DMP Ekstraliga 2020"]
[Site "Krakow"]
[Date "2020.08.30"]
[Round "5.8"]
[White "Nasuta, Grzegorz"]
[Black "Heberla, Bartlomiej"]
[Result "1/2-1/2"]
[ECO "B52"]
[WhiteElo "2553"]
[BlackElo "2566"]
[Annotator "ChessBase"]
[PlyCount "41"]
[EventDate "2020.08.26"]
[EventType "team-tourn"]
[EventCountry "POL"]
[SourceTitle "playchess.com"]
[Source "ChessBase"]
[SourceQuality "1"]
[WhiteTeam "Silesia Raciborz"]
[BlackTeam "Miedz Legnica"]
[TimeControl "30/5400+30:1800+30"]

1. e4 {[%emt 0:00:00]} c5 {[%emt 0:00:00]} 2. Nf3 {[%emt 0:00:00]} d6 {[%emt 0:00:00]} 3. Bb5+ {[%emt 0:03:39]} Bd7 {[%emt 0:00:00]} 4. c4 {[%emt 0:00:20]} Nf6 {[%emt 0:00:43]} 5. Nc3 {[%emt 0:00:07]} e6 {[%emt 0:00:14]} 6. O-O {[%emt 0:02:05]} Be7 {[%emt 0:00:04]} 7. d4 {[%emt 0:00:26]} cxd4 {[%emt 0:00:09]} 8. Nxd4 {[%emt 0:00:07]} O-O {[%emt 0:00:55]} 9. Be3 {[%emt 0:03:15]} a6 {[%emt 0:01:49]} 10. Bxd7 {[%emt 0:03:10]} Qxd7 {[%emt 0:00:35]} 11. f3 {[%emt 0:04:02]} Nc6 {[%emt 0:00:07]} 12. Qe2 {[%emt 0:09:30]} Rac8 {[%emt 0:00:37]} 13. Rac1 {[%emt 0:04:44]} Qc7 {[%emt 0:06:24]} 14. Nxc6 {[%emt 0:03:24]} Qxc6 {[%emt 0:00:32]} 15. b3 {[%emt 0:00:08]} Bd8 {[%emt 0:06:13]} 16. Rfd1 {[%emt 0:09:20]} Bb6 {[%emt 0:02:48]} 17. Na4 {[%emt 0:04:55]} Bc7 {[%emt 0:10:24]} 18. Qf2 {[%emt 0:17:23]} b5 {[%emt 0:13:20]} 19. cxb5 {[%emt 0:18:24]} Qxb5 {[%emt 0:00:46]} 20. Bd4 {[%emt 0:00:18]} Qg5 {[%emt 0:15:46]} 21. Qd2 {[%emt 0:08:51]} 1/2-1/2

[Event "DMP Ekstraliga 2020"]
[Site "Krakow"]
[Date "2020.08.30"]
[Round "5.9"]
[White "Olszewski, Michal"]
[Black "Markowski, Tomasz"]
[Result "1/2-1/2"]
[ECO "B41"]
[WhiteElo "2547"]
[BlackElo "2548"]
[Annotator "ChessBase"]
[PlyCount "81"]
[EventDate "2020.08.26"]
[EventType "team-tourn"]
[EventCountry "POL"]
[SourceTitle "playchess.com"]
[Source "ChessBase"]
[SourceQuality "1"]
[WhiteTeam "Miedz Legnica"]
[BlackTeam "Silesia Raciborz"]
[TimeControl "30/5400+30:1800+30"]

1. e4 {[%emt 0:00:00]} c5 {[%emt 0:00:00]} 2. Nf3 {[%emt 0:00:00]} e6 {[%emt 0:00:00]} 3. d4 {[%emt 0:00:00]} cxd4 {[%emt 0:00:00]} 4. Nxd4 {[%emt 0:00:00]} a6 {[%emt 0:00:00]} 5. c4 {[%emt 0:00:08]} Nf6 {[%emt 0:00:01]} 6. Nc3 {[%emt 0:00:20]} Qc7 {[%emt 0:00:28]} 7. Be2 {[%emt 0:02:57]} b6 {[%emt 0:00:05]} 8. O-O {[%emt 0:03:31]} Bb7 {[%emt 0:00:03]} 9. Qd3 {[%emt 0:02:07]} Nc6 {[%emt 0:00:40]} 10. Nxc6 {[%emt 0:07:31]} dxc6 {[%emt 0:01:24]} 11. f4 {[%emt 0:06:44]} Rd8 {[%emt 0:00:14]} 12. Qh3 {[%emt 0:04:00]} c5 {[%emt 0:02:46]} 13. e5 {[%emt 0:17:44]} Ne4 {[%emt 0:01:37]} 14. f5 {[%emt 0:01:48]} Nxc3 {[%emt 0:05:02]} 15. bxc3 {[%emt 0:22:28]} exf5 {[%emt 0:03:02]} 16. Qxf5 {[%emt 0:02:56]} Bc8 {[%emt 0:00:14]} 17. Qf4 {[%emt 0:07:58]} Be6 {[%emt 0:02:30]} 18. Bg4 {[%emt 0:00:34]} Qd7 {[%emt 0:03:46]} 19. Rd1 {[%emt 0:02:52]} Qxd1+ {[%emt 0:06:13]} 20. Bxd1 {[%emt 0:00:08]} Rxd1+ {[%emt 0:00:03]} 21. Kf2 {[%emt 0:00:06]} Be7 {[%emt 0:00:29]} 22. Qf3 {[%emt 0:03:36]} Rd7 {[%emt 0:00:31]} 23. Qa8+ {[%emt 0:02:50]} Bd8 {[%emt 0:00:22]} 24. Qxa6 {[%emt 0:00:29]} O-O {[%emt 0:00:06]} 25. Bf4 {[%emt 0:00:45]} Bc7 {[%emt 0:07:12]} 26. Kg1 {[%emt 0:01:36]} h6 {[%emt 0:00:22]} 27. Re1 {[%emt 0:01:07]} Rfd8 {[%emt 0:01:24]} 28. h3 {[%emt 0:02:07]} g5 {[%emt 0:07:43]} 29. Be3 {[%emt 0:00:30]} Rd3 {[%emt 0:01:36]} 30. Qb7 {[%emt 0:01:07]} R8d7 {[%emt 0:01:04]} 31. Qa8+ {[%emt 0:32:59]} Kg7 {[%emt 0:31:42]} 32. h4 {[%emt 0:01:16]} Rxc3 {[%emt 0:18:40]} 33. hxg5 {[%emt 0:00:37]} Rxc4 {[%emt 0:00:22]} 34. gxh6+ {[%emt 0:00:35]} Kh7 {[%emt 0:00:06]} 35. Bg5 {[%emt 0:02:35]} Rg4 {[%emt 0:01:42]} 36. Bf6 {[%emt 0:00:05]} Rg8 {[%emt 0:00:37]} 37. Qe4+ {[%emt 0:00:11]} Rg6 {[%emt 0:00:18]} 38. Qa8 {[%emt 0:01:07]} Rg8 {[%emt 0:00:17]} 39. Qe4+ {[%emt 0:00:05]} Rg6 {[%emt 0:00:02]} 40. Qa8 {[%emt 0:00:00]} Rg8 {[%emt 0:00:00]} 41. Qe4+ {[%emt 0:00:00]} 1/2-1/2

[Event "DMP Ekstraliga 2020"]
[Site "Krakow"]
[Date "2020.08.30"]
[Round "5.10"]
[White "Krzyzanowski, Marcin"]
[Black "Bobras, Piotr"]
[Result "1/2-1/2"]
[ECO "B34"]
[WhiteElo "2518"]
[BlackElo "2487"]
[Annotator "ChessBase"]
[PlyCount "86"]
[EventDate "2020.08.26"]
[EventType "team-tourn"]
[EventCountry "POL"]
[SourceTitle "playchess.com"]
[Source "ChessBase"]
[SourceQuality "1"]
[WhiteTeam "Silesia Raciborz"]
[BlackTeam "Miedz Legnica"]
[TimeControl "30/5400+30:1800+30"]

1. e4 {[%emt 0:00:00]} c5 {[%emt 0:00:00]} 2. Nf3 {[%emt 0:00:00]} Nc6 {[%emt 0:00:06]} 3. d4 {[%emt 0:00:00]} cxd4 {[%emt 0:00:04]} 4. Nxd4 {[%emt 0:00:00]} Nf6 {[%emt 0:00:14]} 5. Nc3 {[%emt 0:00:00]} e5 {[%emt 0:00:18]} 6. Ndb5 {[%emt 0:00:00]} d6 {[%emt 0:00:06]} 7. Nd5 {[%emt 0:00:04]} Nxd5 {[%emt 0:00:52]} 8. exd5 {[%emt 0:00:05]} Nb8 {[%emt 0:01:35]} 9. a4 {[%emt 0:00:09]} a6 {[%emt 0:13:48]} 10. Na3 {[%emt 0:00:04]} Be7 {[%emt 0:02:54]} 11. Be2 {[%emt 0:00:28]} O-O {[%emt 0:01:34]} 12. O-O {[%emt 0:00:15]} Bf5 {[%emt 0:04:17]} 13. Nc4 {[%emt 0:01:41]} Nd7 {[%emt 0:06:03]} 14. a5 {[%emt 0:00:19]} Bg6 {[%emt 0:00:29]} 15. Be3 {[%emt 0:04:00]} Rc8 {[%emt 0:06:34]} 16. b4 {[%emt 0:00:59]} f5 {[%emt 0:07:58]} 17. f4 {[%emt 0:01:34]} exf4 {[%emt 0:02:53]} 18. Bxf4 {[%emt 0:00:09]} Nf6 {[%emt 0:00:24]} 19. Nb6 {[%emt 0:03:16]} Rc3 {[%emt 0:00:11]} 20. Na4 {[%emt 0:02:18]} Rc8 {[%emt 0:07:11]} 21. c4 {[%emt 0:06:17]} Ne4 {[%emt 0:04:54]} 22. Rc1 {[%emt 0:18:11]} Bg5 {[%emt 0:03:49]} 23. g3 {[%emt 0:04:53]} Bxf4 {[%emt 0:03:02]} 24. Rxf4 {[%emt 0:01:00]} Qe7 {[%emt 0:02:58]} 25. Bd3 {[%emt 0:05:20]} Qe5 {[%emt 0:06:43]} 26. Nb6 {[%emt 0:07:18]} Rc7 {[%emt 0:05:18]} 27. c5 {[%emt 0:23:04]} Bh5 {[%emt 0:05:53]} 28. Qxh5 {[%emt 0:03:40]} Qd4+ {[%emt 0:00:02]} 29. Kg2 {[%emt 0:02:01]} Qxd3 {[%emt 0:00:16]} 30. Qd1 {[%emt 0:01:34]} Qb5 {[%emt 0:04:10]} 31. Rc4 {[%emt 0:34:09]} g6 {[%emt 0:35:59]} 32. Rf1 {[%emt 0:04:20]} Rd8 {[%emt 0:00:25]} 33. g4 {[%emt 0:02:28]} dxc5 {[%emt 0:02:49]} 34. Qc2 {[%emt 0:02:01]} Re7 {[%emt 0:02:06]} 35. bxc5 {[%emt 0:03:38]} Nxc5 {[%emt 0:00:01]} 36. gxf5 {[%emt 0:01:09]} Rde8 {[%emt 0:01:05]} 37. Kh1 {[%emt 0:01:06]} Re2 {[%emt 0:00:38]} 38. Qc3 {[%emt 0:00:55]} Ne4 {[%emt 0:00:47]} 39. Qd4 {[%emt 0:00:09]} Qb3 {[%emt 0:00:29]} 40. fxg6 {[%emt 0:00:00]} Rxh2+ {[%emt 0:00:00]} 41. Kxh2 {[%emt 0:00:00]} Qg3+ {[%emt 0:00:00]} 42. Kh1 {[%emt 0:00:00]} Qh3+ {[%emt 0:00:00]} 43. Kg1 {[%emt 0:00:00]} Qg3+ {[%emt 0:00:00]} 1/2-1/2

[Event "DMP Ekstraliga 2020"]
[Site "Krakow"]
[Date "2020.08.30"]
[Round "5.11"]
[White "Murdzia, Piotr"]
[Black "Jakubowski, Krzysztof"]
[Result "1/2-1/2"]
[ECO "E17"]
[WhiteElo "2423"]
[BlackElo "2481"]
[Annotator "ChessBase"]
[PlyCount "86"]
[EventDate "2020.08.26"]
[EventType "team-tourn"]
[EventCountry "POL"]
[SourceTitle "playchess.com"]
[Source "ChessBase"]
[SourceQuality "1"]
[WhiteTeam "Miedz Legnica"]
[BlackTeam "Silesia Raciborz"]
[TimeControl "30/5400+30:1800+30"]

1. d4 {[%emt 0:00:00]} Nf6 {[%emt 0:00:00]} 2. c4 {[%emt 0:00:00]} e6 {[%emt 0:00:00]} 3. Nf3 {[%emt 0:00:01]} b6 {[%emt 0:00:13]} 4. g3 {[%emt 0:02:36]} Bb7 {[%emt 0:00:31]} 5. Bg2 {[%emt 0:00:05]} Be7 {[%emt 0:00:07]} 6. O-O {[%emt 0:00:06]} O-O {[%emt 0:00:05]} 7. d5 {[%emt 0:03:52]} exd5 {[%emt 0:01:02]} 8. Nh4 {[%emt 0:00:19]} c6 {[%emt 0:00:28]} 9. cxd5 {[%emt 0:00:39]} Nxd5 {[%emt 0:00:10]} 10. Nf5 {[%emt 0:00:15]} Nc7 {[%emt 0:00:36]} 11. Nc3 {[%emt 0:02:32]} Ne6 {[%emt 0:02:49]} 12. e4 {[%emt 0:02:02]} d6 {[%emt 0:00:23]} 13. Qg4 {[%emt 0:02:34]} Nd7 {[%emt 0:10:39]} 14. Bf4 {[%emt 0:18:13]} Ne5 {[%emt 0:11:42]} 15. Nh6+ {[%emt 0:02:49]} Kh8 {[%emt 0:02:18]} 16. Nxf7+ {[%emt 0:02:03]} Rxf7 {[%emt 0:01:12]} 17. Qxe6 {[%emt 0:00:26]} Qf8 {[%emt 0:00:52]} 18. Ne2 {[%emt 0:35:06]} Ba6 {[%emt 0:13:16]} 19. Nd4 {[%emt 0:00:05]} Re8 {[%emt 0:05:53]} 20. Rfd1 {[%emt 0:05:59]} Bg5 {[%emt 0:09:38]} 21. Bxg5 {[%emt 0:06:22]} Rxe6 {[%emt 0:00:14]} 22. Nxe6 {[%emt 0:00:05]} Qb8 {[%emt 0:00:50]} 23. f4 {[%emt 0:11:02]} Nc4 {[%emt 0:07:07]} 24. Bf1 {[%emt 0:02:45]} h6 {[%emt 0:00:58]} 25. b3 {[%emt 0:01:00]} Ne3 {[%emt 0:02:53]} 26. Bxa6 {[%emt 0:00:34]} Nxd1 {[%emt 0:00:17]} 27. Rxd1 {[%emt 0:00:18]} hxg5 {[%emt 0:05:50]} 28. Nxg5 {[%emt 0:00:04]} Re7 {[%emt 0:01:39]} 29. Be2 {[%emt 0:01:31]} g6 {[%emt 0:01:38]} 30. Kg2 {[%emt 0:00:05]} b5 {[%emt 0:00:21]} 31. h4 {[%emt 0:30:34]} Kg7 {[%emt 0:30:51]} 32. h5 {[%emt 0:00:16]} gxh5 {[%emt 0:00:22]} 33. Bxh5 {[%emt 0:00:10]} c5 {[%emt 0:03:23]} 34. Be2 {[%emt 0:01:13]} Re8 {[%emt 0:02:21]} 35. e5 {[%emt 0:01:12]} dxe5 {[%emt 0:07:01]} 36. Rd7+ {[%emt 0:00:09]} Kg8 {[%emt 0:00:03]} 37. Bf3 {[%emt 0:00:36]} e4 {[%emt 0:00:46]} 38. Bxe4 {[%emt 0:00:35]} Rxe4 {[%emt 0:00:35]} 39. Nxe4 {[%emt 0:00:04]} Qa8 {[%emt 0:00:04]} 40. Kf3 {[%emt 0:00:00]} Qc6 {[%emt 0:00:00]} 41. Rd6 {[%emt 0:00:00]} Qc7 {[%emt 0:00:00]} 42. Rd7 {[%emt 0:00:00]} Qc6 {[%emt 0:00:00]} 43. Rd6 {[%emt 0:00:00]} Qc7 {[%emt 0:00:00]} 1/2-1/2